[Event "Titled Tuesday Blitz October 11 Early 2022"]
[White "Tang, Andrew"]
[Black "Lucas, Arthur"]
[WhiteFideId "2059630"]
[BlackFideId "26093073"]
[WhiteElo "2581"]
[BlackElo "2251"]
[Result "1-0"]
[Round "01"]
[TimeControl "180+1"]
[Date "2022.10.11"]
[WhiteClock "0:01:42"]
[BlackClock "0:00:02"]

1. d4 {[%clk 0:03:00]}  Nf6 {[%clk 0:02:57]} 2. c4 {[%clk 0:02:58]}  g6 {[%clk 0:02:57]} 3. f3 {[%clk 0:02:58]}  Bg7 {[%clk 0:02:58]} 4. e4 {[%clk 0:02:58]}  d6 {[%clk 0:02:59]} 5. Nc3 {[%clk 0:02:58]}  a6 {[%clk 0:02:58]} 6. Nge2 {[%clk 0:02:59]}  c6 {[%clk 0:02:56]} 7. Be3 {[%clk 0:02:58]}  b5 {[%clk 0:02:57]} 8. c5 {[%clk 0:02:58]}  O-O {[%clk 0:02:45]} 9. cxd6 {[%clk 0:02:58]}  exd6 {[%clk 0:02:40]} 10. Nf4 {[%clk 0:02:58]}  Re8 {[%clk 0:02:35]} 11. Be2 {[%clk 0:02:58]}  Bb7 {[%clk 0:02:31]} 12. O-O {[%clk 0:02:58]}  Nbd7 {[%clk 0:02:31]} 13. Qd2 {[%clk 0:02:58]}  Qc7 {[%clk 0:02:21]} 14. Rfd1 {[%clk 0:02:57]}  Rad8 {[%clk 0:02:20]} 15. Rac1 {[%clk 0:02:57]}  Nb6 {[%clk 0:02:14]} 16. b3 {[%clk 0:02:55]}  Qb8 {[%clk 0:02:13]} 17. h4 {[%clk 0:02:46]}  h5 {[%clk 0:02:11]} 18. a4 {[%clk 0:02:36]}  b4 {[%clk 0:01:54]} 19. Nb1 {[%clk 0:02:35]}  a5 {[%clk 0:01:53]} 20. Qc2 {[%clk 0:02:35]}  Rc8 {[%clk 0:01:31]} 21. Qd2 {[%clk 0:02:28]}  Nbd7 {[%clk 0:01:21]} 22. Bd3 {[%clk 0:02:27]}  Nf8 {[%clk 0:01:20]} 23. Qf2 {[%clk 0:02:24]}  Ne6 {[%clk 0:01:07]} 24. Nd2 {[%clk 0:02:23]}  Nxf4 {[%clk 0:01:06]} 25. Bxf4 {[%clk 0:02:22]}  Red8 {[%clk 0:00:58]} 26. Nc4 {[%clk 0:02:22]}  Qa7 {[%clk 0:00:54]} 27. Nxd6 {[%clk 0:02:16]}  Ra8 {[%clk 0:00:29]} 28. Bc4 {[%clk 0:02:12]}  Rd7 {[%clk 0:00:20]} 29. Be5 {[%clk 0:02:04]}  Rad8 {[%clk 0:00:15]} 30. Qg3 {[%clk 0:02:03]}  Rxd6 {[%clk 0:00:05]} 31. Bxd6 {[%clk 0:02:00]}  Ne8 {[%clk 0:00:04]} 32. Be5 {[%clk 0:01:58]}  Ba6 {[%clk 0:00:02]} 33. Qxg6 {[%clk 0:01:55]}  Bxc4 {[%clk 0:00:02]} 34. Qxh5 {[%clk 0:01:46]}  Bxb3 {[%clk 0:00:02]} 35. Rd2 {[%clk 0:01:46]}  c5 {[%clk 0:00:01]} 36. Rxc5 {[%clk 0:01:44]}  Qxc5 {[%clk 0:00:01]} 37. dxc5 {[%clk 0:01:44]}  Rxd2 {[%clk 0:00:02]} 38. c6 {[%clk 0:01:44]}  Rd1+ {[%clk 0:00:02]} 39. Kh2 {[%clk 0:01:44]}  Rc1 {[%clk 0:00:03]} 40. Bxg7 {[%clk 0:01:44]}  Nxg7 {[%clk 0:00:03]} 41. Qxa5 {[%clk 0:01:44]}  Rxc6 {[%clk 0:00:03]} 42. Qxb4 {[%clk 0:01:45]}  Be6 {[%clk 0:00:02]} 43. a5 {[%clk 0:01:45]}  Rc4 {[%clk 0:00:02]} 44. Qb7 {[%clk 0:01:42]} 1-0


[Site "https://www.chess.com"]

[Event "Titled Tuesday Blitz October 11 Early 2022"]
[White "Tatarinov, Dmitry"]
[Black "Begunov, Konstantin"]
[WhiteFideId "24160067"]
[BlackFideId "4118510"]
[WhiteElo "2326"]
[BlackElo "2225"]
[Result "1/2-1/2"]
[Round "01"]
[TimeControl "180+1"]
[Date "2022.10.12"]
[WhiteClock "0:00:21"]
[BlackClock "0:00:23"]

1. e4 {[%clk 0:02:59]}  c5 {[%clk 0:02:59]} 2. Nf3 {[%clk 0:02:58]}  d6 {[%clk 0:03:00]} 3. d4 {[%clk 0:02:58]}  cxd4 {[%clk 0:03:01]} 4. Nxd4 {[%clk 0:02:59]}  Nf6 {[%clk 0:03:00]} 5. Nc3 {[%clk 0:02:59]}  a6 {[%clk 0:03:00]} 6. Bd3 {[%clk 0:02:59]}  e5 {[%clk 0:02:56]} 7. Nde2 {[%clk 0:02:57]}  Nc6 {[%clk 0:02:45]} 8. Bg5 {[%clk 0:02:47]}  Be7 {[%clk 0:02:43]} 9. O-O {[%clk 0:02:47]}  O-O {[%clk 0:02:43]} 10. Kh1 {[%clk 0:02:46]}  b5 {[%clk 0:02:39]} 11. a3 {[%clk 0:02:43]}  Bb7 {[%clk 0:02:26]} 12. f4 {[%clk 0:02:32]}  exf4 {[%clk 0:02:26]} 13. Nxf4 {[%clk 0:02:29]}  Ne5 {[%clk 0:02:26]} 14. Qe1 {[%clk 0:02:20]}  Nfd7 {[%clk 0:02:05]} 15. Bxe7 {[%clk 0:02:19]}  Qxe7 {[%clk 0:02:06]} 16. Ncd5 {[%clk 0:02:19]}  Qg5 {[%clk 0:02:03]} 17. Qb4 {[%clk 0:01:58]}  Nc5 {[%clk 0:01:58]} 18. Be2 {[%clk 0:01:57]}  Rac8 {[%clk 0:01:50]} 19. Rad1 {[%clk 0:01:56]}  Rfe8 {[%clk 0:01:47]} 20. Qd4 {[%clk 0:01:35]}  Ne6 {[%clk 0:01:39]} 21. Nxe6 {[%clk 0:01:35]}  fxe6 {[%clk 0:01:36]} 22. Ne3 {[%clk 0:01:31]}  Qe7 {[%clk 0:01:23]} 23. Qxd6 {[%clk 0:01:27]}  Qxd6 {[%clk 0:01:22]} 24. Rxd6 {[%clk 0:01:26]}  Rc7 {[%clk 0:01:14]} 25. Bd3 {[%clk 0:01:19]}  Nf7 {[%clk 0:01:14]} 26. Rb6 {[%clk 0:01:18]}  Rd8 {[%clk 0:01:08]} 27. Rxe6 {[%clk 0:01:13]}  Ng5 {[%clk 0:01:07]} 28. Re5 {[%clk 0:01:13]}  Nf7 {[%clk 0:01:06]} 29. Ref5 {[%clk 0:01:11]}  Nd6 {[%clk 0:01:04]} 30. R5f4 {[%clk 0:01:11]}  Re8 {[%clk 0:01:01]} 31. e5 {[%clk 0:01:02]}  Nf7 {[%clk 0:00:57]} 32. Bxh7+ {[%clk 0:00:53]}  Kxh7 {[%clk 0:00:53]} 33. Rxf7 {[%clk 0:00:53]}  Rxf7 {[%clk 0:00:47]} 34. Rxf7 {[%clk 0:00:54]}  Rxe5 {[%clk 0:00:47]} 35. Rxb7 {[%clk 0:00:53]}  Rxe3 {[%clk 0:00:47]} 36. h3 {[%clk 0:00:53]}  Re1+ {[%clk 0:00:42]} 37. Kh2 {[%clk 0:00:53]}  Rb1 {[%clk 0:00:40]} 38. b4 {[%clk 0:00:49]}  Ra1 {[%clk 0:00:38]} 39. Rc7 {[%clk 0:00:45]}  Rxa3 {[%clk 0:00:38]} 40. c3 {[%clk 0:00:46]}  a5 {[%clk 0:00:33]} 41. Rc5 {[%clk 0:00:44]}  a4 {[%clk 0:00:31]} 42. h4 {[%clk 0:00:40]}  Rb3 {[%clk 0:00:30]} 43. Rxb5 {[%clk 0:00:40]}  Rxc3 {[%clk 0:00:30]} 44. g3 {[%clk 0:00:38]}  a3 {[%clk 0:00:29]} 45. Ra5 {[%clk 0:00:39]}  Rb3 {[%clk 0:00:24]} 46. b5 {[%clk 0:00:38]}  a2 {[%clk 0:00:24]} 47. Rxa2 {[%clk 0:00:35]}  Rxb5 {[%clk 0:00:24]} 48. Kh3 {[%clk 0:00:36]}  Kh6 {[%clk 0:00:22]} 49. Ra8 {[%clk 0:00:35]}  Rb4 {[%clk 0:00:21]} 50. Ra6+ {[%clk 0:00:34]}  Kh7 {[%clk 0:00:21]} 51. h5 {[%clk 0:00:34]}  Rc4 {[%clk 0:00:21]} 52. g4 {[%clk 0:00:32]}  Rb4 {[%clk 0:00:21]} 53. Kh4 {[%clk 0:00:32]}  Rb5 {[%clk 0:00:21]} 54. Ra4 {[%clk 0:00:32]}  Rc5 {[%clk 0:00:21]} 55. Re4 {[%clk 0:00:32]}  Rb5 {[%clk 0:00:21]} 56. g5 {[%clk 0:00:32]}  Rb1 {[%clk 0:00:21]} 57. Re8 {[%clk 0:00:29]}  Rb4+ {[%clk 0:00:20]} 58. Kg3 {[%clk 0:00:30]}  Rb3+ {[%clk 0:00:20]} 59. Kf4 {[%clk 0:00:30]}  Rb4+ {[%clk 0:00:20]} 60. Kf5 {[%clk 0:00:30]}  Rb5+ {[%clk 0:00:21]} 61. Re5 {[%clk 0:00:30]}  Rb1 {[%clk 0:00:20]} 62. h6 {[%clk 0:00:19]}  Rf1+ {[%clk 0:00:18]} 63. Kg4 {[%clk 0:00:19]}  gxh6 {[%clk 0:00:18]} 64. Re7+ {[%clk 0:00:18]}  Kg6 {[%clk 0:00:18]} 65. Re6+ {[%clk 0:00:19]}  Kg7 {[%clk 0:00:18]} 66. Rxh6 {[%clk 0:00:18]}  Rg1+ {[%clk 0:00:19]} 67. Kf4 {[%clk 0:00:18]}  Rf1+ {[%clk 0:00:19]} 68. Ke3 {[%clk 0:00:18]}  Re1+ {[%clk 0:00:20]} 69. Kf3 {[%clk 0:00:19]}  Rg1 {[%clk 0:00:20]} 70. Kf4 {[%clk 0:00:16]}  Rf1+ {[%clk 0:00:21]} 71. Kg4 {[%clk 0:00:17]}  Rg1+ {[%clk 0:00:21]} 72. Kf5 {[%clk 0:00:18]}  Rf1+ {[%clk 0:00:21]} 73. Ke4 {[%clk 0:00:18]}  Rg1 {[%clk 0:00:21]} 74. Rh5 {[%clk 0:00:19]}  Kg6 {[%clk 0:00:21]} 75. Rh2 {[%clk 0:00:19]}  Rxg5 {[%clk 0:00:20]} 76. Rf2 {[%clk 0:00:20]}  Rg4+ {[%clk 0:00:21]} 77. Ke5 {[%clk 0:00:20]}  Rg5+ {[%clk 0:00:21]} 78. Ke6 {[%clk 0:00:20]}  Rg4 {[%clk 0:00:22]} 79. Rf6+ {[%clk 0:00:20]}  Kg5 {[%clk 0:00:22]} 80. Rf5+ {[%clk 0:00:21]}  Kh4 {[%clk 0:00:22]} 81. Ke5 {[%clk 0:00:20]}  Rg5 {[%clk 0:00:22]} 82. Rxg5 {[%clk 0:00:21]}  Kxg5 {[%clk 0:00:23]} 1/2-1/2


[Site "https://www.chess.com"]

[Event "Titled Tuesday Blitz October 11 Early 2022"]
[White "Tiarks, Jann-Christian"]
[Black "Subelj, Jan"]
[WhiteFideId "12951595"]
[BlackFideId "14618583"]
[WhiteElo "2194"]
[BlackElo "2394"]
[Result "0-1"]
[Round "01"]
[TimeControl "180+1"]
[Date "2022.10.12"]
[WhiteClock "0:01:51"]
[BlackClock "0:02:23"]

1. e4 {[%clk 0:02:57]}  c5 {[%clk 0:02:58]} 2. c3 {[%clk 0:02:56]}  e5 {[%clk 0:02:57]} 3. d4 {[%clk 0:02:53]}  cxd4 {[%clk 0:02:58]} 4. cxd4 {[%clk 0:02:54]}  exd4 {[%clk 0:02:59]} 5. Nf3 {[%clk 0:02:54]}  Bc5 {[%clk 0:02:48]} 6. Nbd2 {[%clk 0:02:51]}  Nf6 {[%clk 0:02:44]} 7. e5 {[%clk 0:02:49]}  Nd5 {[%clk 0:02:44]} 8. Bc4 {[%clk 0:02:49]}  Nb6 {[%clk 0:02:43]} 9. Bb3 {[%clk 0:02:46]}  d5 {[%clk 0:02:44]} 10. O-O {[%clk 0:02:37]}  Bf5 {[%clk 0:02:41]} 11. Bc2 {[%clk 0:02:37]}  d3 {[%clk 0:02:41]} 12. Bb3 {[%clk 0:02:37]}  Nc6 {[%clk 0:02:41]} 13. Re1 {[%clk 0:02:35]}  O-O {[%clk 0:02:39]} 14. Nf1 {[%clk 0:02:35]}  a5 {[%clk 0:02:38]} 15. a3 {[%clk 0:02:34]}  Nc4 {[%clk 0:02:35]} 16. Ng3 {[%clk 0:02:32]}  Bg6 {[%clk 0:02:35]} 17. Ba2 {[%clk 0:02:17]}  Qb6 {[%clk 0:02:35]} 18. Nh4 {[%clk 0:01:58]}  Bxf2+ {[%clk 0:02:34]} 19. Kh1 {[%clk 0:01:58]}  Bxe1 {[%clk 0:02:32]} 20. Nxg6 {[%clk 0:01:57]}  fxg6 {[%clk 0:02:27]} 21. Qxe1 {[%clk 0:01:57]}  Qf2 {[%clk 0:02:26]} 22. Bd2 {[%clk 0:01:51]}  Qxd2 {[%clk 0:02:23]} 0-1


[Site "https://www.chess.com"]

[Event "Titled Tuesday Blitz October 11 Early 2022"]
[White "Titichoca Daza, Daniel"]
[Black "Costachi, Mihnea"]
[WhiteFideId "3309550"]
[BlackFideId "1217518"]
[WhiteElo "2105"]
[BlackElo "2437"]
[Result "1-0"]
[Round "01"]
[TimeControl "180+1"]
[Date "2022.10.12"]
[WhiteClock "0:00:56"]
[BlackClock "0:00:12"]

1. e4 {[%clk 0:02:58]}  c6 {[%clk 0:02:58]} 2. Nc3 {[%clk 0:02:57]}  d5 {[%clk 0:02:56]} 3. Nf3 {[%clk 0:02:58]}  dxe4 {[%clk 0:02:54]} 4. Nxe4 {[%clk 0:02:57]}  Nd7 {[%clk 0:02:55]} 5. Qe2 {[%clk 0:02:57]}  e6 {[%clk 0:02:54]} 6. b3 {[%clk 0:02:53]}  Ngf6 {[%clk 0:02:53]} 7. Bb2 {[%clk 0:02:52]}  Be7 {[%clk 0:02:52]} 8. O-O-O {[%clk 0:02:41]}  O-O {[%clk 0:02:50]} 9. g4 {[%clk 0:02:38]}  Qa5 {[%clk 0:02:38]} 10. Kb1 {[%clk 0:02:36]}  b6 {[%clk 0:02:37]} 11. g5 {[%clk 0:02:32]}  Nxe4 {[%clk 0:02:29]} 12. Qxe4 {[%clk 0:02:31]}  Qd5 {[%clk 0:02:29]} 13. Qe3 {[%clk 0:02:24]}  Bb7 {[%clk 0:02:25]} 14. h4 {[%clk 0:02:13]}  c5 {[%clk 0:02:24]} 15. Rh3 {[%clk 0:02:04]}  Rfd8 {[%clk 0:02:16]} 16. h5 {[%clk 0:01:58]}  e5 {[%clk 0:01:56]} 17. g6 {[%clk 0:01:50]}  Qe4 {[%clk 0:01:41]} 18. gxf7+ {[%clk 0:01:37]}  Kh8 {[%clk 0:01:27]} 19. Nxe5 {[%clk 0:01:30]}  Nxe5 {[%clk 0:01:12]} 20. Bxe5 {[%clk 0:01:27]}  Qxe3 {[%clk 0:01:03]} 21. Rxe3 {[%clk 0:01:26]}  Bd5 {[%clk 0:01:01]} 22. h6 {[%clk 0:01:23]}  Bf6 {[%clk 0:01:01]} 23. Bxf6 {[%clk 0:01:18]}  gxf6 {[%clk 0:01:02]} 24. Bc4 {[%clk 0:01:18]}  Bc6 {[%clk 0:00:35]} 25. Rg1 {[%clk 0:01:13]}  b5 {[%clk 0:00:34]} 26. Be6 {[%clk 0:00:58]}  Bd5 {[%clk 0:00:13]} 27. Bxd5 {[%clk 0:00:55]}  Rxd5 {[%clk 0:00:13]} 28. Re8+ {[%clk 0:00:55]}  Rxe8 {[%clk 0:00:12]} 29. fxe8=Q# {[%clk 0:00:56]} 1-0


[Site "https://www.chess.com"]

[Event "Titled Tuesday Blitz October 11 Early 2022"]
[White "Tologon tegin, Semetei"]
[Black "Cramling Bellon, Anna"]
[WhiteFideId "13800574"]
[BlackFideId "32009232"]
[WhiteElo "2282"]
[BlackElo "1972"]
[Result "1-0"]
[Round "01"]
[TimeControl "180+1"]
[Date "2022.10.12"]
[WhiteClock "0:00:05"]
[BlackClock "0:00:03"]

1. e4 {[%clk 0:02:46]}  c5 {[%clk 0:02:58]} 2. Nf3 {[%clk 0:02:42]}  e6 {[%clk 0:02:57]} 3. d4 {[%clk 0:02:41]}  cxd4 {[%clk 0:02:58]} 4. Nxd4 {[%clk 0:02:37]}  Nf6 {[%clk 0:02:58]} 5. Nc3 {[%clk 0:02:36]}  Nc6 {[%clk 0:02:58]} 6. Nxc6 {[%clk 0:02:35]}  bxc6 {[%clk 0:02:58]} 7. e5 {[%clk 0:02:36]}  Nd5 {[%clk 0:02:58]} 8. Ne4 {[%clk 0:02:35]}  Qc7 {[%clk 0:02:59]} 9. f4 {[%clk 0:02:35]}  Qb6 {[%clk 0:02:58]} 10. a3 {[%clk 0:02:23]}  Ne3 {[%clk 0:02:50]} 11. Qd3 {[%clk 0:02:10]}  Nxf1 {[%clk 0:02:43]} 12. Rxf1 {[%clk 0:02:11]}  Ba6 {[%clk 0:02:42]} 13. c4 {[%clk 0:02:11]}  Be7 {[%clk 0:02:15]} 14. b4 {[%clk 0:01:50]}  O-O {[%clk 0:02:03]} 15. Be3 {[%clk 0:01:44]}  Qc7 {[%clk 0:01:58]} 16. Rf3 {[%clk 0:01:36]}  f5 {[%clk 0:01:55]} 17. Nd6 {[%clk 0:01:26]}  c5 {[%clk 0:01:35]} 18. Bxc5 {[%clk 0:01:20]}  Qc6 {[%clk 0:01:23]} 19. Kf2 {[%clk 0:01:04]}  Bxd6 {[%clk 0:01:18]} 20. Qxd6 {[%clk 0:00:50]}  Bxc4 {[%clk 0:00:45]} 21. Qxc6 {[%clk 0:00:47]}  dxc6 {[%clk 0:00:46]} 22. Bxf8 {[%clk 0:00:47]}  Rxf8 {[%clk 0:00:47]} 23. Rc3 {[%clk 0:00:45]}  Bd5 {[%clk 0:00:44]} 24. a4 {[%clk 0:00:35]}  a6 {[%clk 0:00:44]} 25. Rb1 {[%clk 0:00:32]}  Rb8 {[%clk 0:00:42]} 26. Rc5 {[%clk 0:00:28]}  Be4 {[%clk 0:00:38]} 27. Rb2 {[%clk 0:00:28]}  h6 {[%clk 0:00:33]} 28. h4 {[%clk 0:00:24]}  Rd8 {[%clk 0:00:29]} 29. Rc3 {[%clk 0:00:15]}  Rd4 {[%clk 0:00:26]} 30. g3 {[%clk 0:00:14]}  Rd1 {[%clk 0:00:17]} 31. Ke3 {[%clk 0:00:14]}  Kf7 {[%clk 0:00:09]} 32. Rd2 {[%clk 0:00:09]}  Re1+ {[%clk 0:00:09]} 33. Kd4 {[%clk 0:00:09]}  Bd5 {[%clk 0:00:08]} 34. Kc5 {[%clk 0:00:09]}  Re4 {[%clk 0:00:06]} 35. b5 {[%clk 0:00:08]}  axb5 {[%clk 0:00:04]} 36. axb5 {[%clk 0:00:09]}  cxb5 {[%clk 0:00:04]} 37. Rxd5 {[%clk 0:00:07]}  exd5 {[%clk 0:00:03]} 38. Kxd5 {[%clk 0:00:08]}  b4 {[%clk 0:00:03]} 39. Rc6 {[%clk 0:00:06]}  b3 {[%clk 0:00:03]} 40. Rb6 {[%clk 0:00:07]}  Re3 {[%clk 0:00:04]} 41. h5 {[%clk 0:00:06]}  Rxg3 {[%clk 0:00:04]} 42. Rb7+ {[%clk 0:00:05]}  Kf8 {[%clk 0:00:04]} 43. Ke6 {[%clk 0:00:05]}  Kg8 {[%clk 0:00:02]} 44. Rb8+ {[%clk 0:00:06]}  Kh7 {[%clk 0:00:03]} 45. Kxf5 {[%clk 0:00:06]}  Re3 {[%clk 0:00:02]} 46. e6 {[%clk 0:00:06]}  Re2 {[%clk 0:00:01]} 47. Rb7 {[%clk 0:00:06]}  b2 {[%clk 0:00:01]} 48. Kg4 {[%clk 0:00:05]}  Rg2+ {[%clk 0:00:01]} 49. Kf3 {[%clk 0:00:06]}  Rh2 {[%clk 0:00:01]} 50. f5 {[%clk 0:00:07]}  Rxh5 {[%clk 0:00:01]} 51. Kf4 {[%clk 0:00:07]}  Rh4+ {[%clk 0:00:01]} 52. Ke5 {[%clk 0:00:07]}  Rh2 {[%clk 0:00:02]} 53. e7 {[%clk 0:00:07]}  Re2+ {[%clk 0:00:03]} 54. Kd6 {[%clk 0:00:07]}  Rd2+ {[%clk 0:00:03]} 55. Ke6 {[%clk 0:00:07]}  Re2+ {[%clk 0:00:04]} 56. Kf7 {[%clk 0:00:08]}  Re5 {[%clk 0:00:04]} 57. e8=Q {[%clk 0:00:07]}  Rxf5+ {[%clk 0:00:04]} 58. Ke6 {[%clk 0:00:07]}  Rf6+ {[%clk 0:00:04]} 59. Ke5 {[%clk 0:00:07]}  h5 {[%clk 0:00:02]} 60. Qxh5+ {[%clk 0:00:06]}  Rh6 {[%clk 0:00:02]} 61. Qf5+ {[%clk 0:00:06]}  Rg6 {[%clk 0:00:03]} 62. Rxb2 {[%clk 0:00:06]}  Kh6 {[%clk 0:00:03]} 63. Rh2# {[%clk 0:00:05]} 1-0


[Site "https://www.chess.com"]

[Event "Titled Tuesday Blitz October 11 Early 2022"]
[White "Torres Boch, Jose Francisco"]
[Black "Kodinets, Konstantin L."]
[WhiteFideId "2278383"]
[BlackFideId "4122011"]
[WhiteElo "2073"]
[BlackElo "2447"]
[Result "0-1"]
[Round "01"]
[TimeControl "180+1"]
[Date "2022.10.12"]
[WhiteClock "0:00:05"]
[BlackClock "0:00:11"]

1. e4 {[%clk 0:02:54]}  e5 {[%clk 0:03:00]} 2. Nf3 {[%clk 0:02:54]}  d6 {[%clk 0:03:00]} 3. d4 {[%clk 0:02:52]}  exd4 {[%clk 0:03:00]} 4. Nxd4 {[%clk 0:02:51]}  Nf6 {[%clk 0:03:01]} 5. Nc3 {[%clk 0:02:50]}  Be7 {[%clk 0:03:01]} 6. Be2 {[%clk 0:02:21]}  O-O {[%clk 0:03:01]} 7. Bf4 {[%clk 0:02:22]}  Nc6 {[%clk 0:02:59]} 8. Qd2 {[%clk 0:02:14]}  Nxd4 {[%clk 0:02:58]} 9. Qxd4 {[%clk 0:02:15]}  Be6 {[%clk 0:02:59]} 10. O-O-O {[%clk 0:02:08]}  Nd7 {[%clk 0:02:58]} 11. Qe3 {[%clk 0:01:56]}  a6 {[%clk 0:02:53]} 12. g4 {[%clk 0:01:55]}  Bf6 {[%clk 0:02:50]} 13. g5 {[%clk 0:01:36]}  Be5 {[%clk 0:02:50]} 14. Bxe5 {[%clk 0:01:35]}  dxe5 {[%clk 0:02:50]} 15. h4 {[%clk 0:01:33]}  Qe7 {[%clk 0:02:44]} 16. h5 {[%clk 0:01:31]}  Nb6 {[%clk 0:02:25]} 17. g6 {[%clk 0:01:30]}  fxg6 {[%clk 0:02:16]} 18. hxg6 {[%clk 0:01:30]}  h6 {[%clk 0:02:15]} 19. Nd5 {[%clk 0:01:30]}  Bxd5 {[%clk 0:02:13]} 20. exd5 {[%clk 0:01:29]}  Rf4 {[%clk 0:02:02]} 21. d6 {[%clk 0:01:20]}  Qf6 {[%clk 0:01:59]} 22. dxc7 {[%clk 0:01:17]}  Rc8 {[%clk 0:01:48]} 23. Qc3 {[%clk 0:00:54]}  Rd4 {[%clk 0:01:28]} 24. Rxd4 {[%clk 0:00:41]}  exd4 {[%clk 0:01:27]} 25. Qc5 {[%clk 0:00:41]}  Qc6 {[%clk 0:01:16]} 26. Qxd4 {[%clk 0:00:38]}  Qxc7 {[%clk 0:01:12]} 27. c3 {[%clk 0:00:38]}  Rd8 {[%clk 0:01:08]} 28. Qe4 {[%clk 0:00:33]}  Qc6 {[%clk 0:00:35]} 29. Qxc6 {[%clk 0:00:27]}  bxc6 {[%clk 0:00:36]} 30. Bxa6 {[%clk 0:00:27]}  Rd6 {[%clk 0:00:36]} 31. Rg1 {[%clk 0:00:27]}  c5 {[%clk 0:00:35]} 32. Kc2 {[%clk 0:00:25]}  Rf6 {[%clk 0:00:32]} 33. Rg2 {[%clk 0:00:24]}  Kf8 {[%clk 0:00:32]} 34. Bb5 {[%clk 0:00:24]}  Nd5 {[%clk 0:00:30]} 35. a4 {[%clk 0:00:23]}  Nf4 {[%clk 0:00:29]} 36. Rh2 {[%clk 0:00:20]}  Nxg6 {[%clk 0:00:22]} 37. a5 {[%clk 0:00:20]}  Ne7 {[%clk 0:00:22]} 38. Kb3 {[%clk 0:00:16]}  Rf4 {[%clk 0:00:16]} 39. Ka3 {[%clk 0:00:15]}  Nc8 {[%clk 0:00:16]} 40. b4 {[%clk 0:00:15]}  cxb4+ {[%clk 0:00:16]} 41. cxb4 {[%clk 0:00:16]}  Na7 {[%clk 0:00:16]} 42. Bd7 {[%clk 0:00:14]}  Ke7 {[%clk 0:00:16]} 43. Ba4 {[%clk 0:00:11]}  Rf3+ {[%clk 0:00:16]} 44. Ka2 {[%clk 0:00:09]}  Rf4 {[%clk 0:00:15]} 45. Ka3 {[%clk 0:00:08]}  Rf3+ {[%clk 0:00:16]} 46. Bb3 {[%clk 0:00:08]}  Nb5+ {[%clk 0:00:14]} 47. Kb2 {[%clk 0:00:08]}  Nd4 {[%clk 0:00:13]} 48. Bd1 {[%clk 0:00:07]}  Rf5 {[%clk 0:00:13]} 49. Rg2 {[%clk 0:00:07]}  g5 {[%clk 0:00:13]} 50. Rg4 {[%clk 0:00:07]}  Nc6 {[%clk 0:00:13]} 51. Re4+ {[%clk 0:00:06]}  Kd6 {[%clk 0:00:13]} 52. f3 {[%clk 0:00:07]}  Rb5 {[%clk 0:00:09]} 53. Ka3 {[%clk 0:00:04]}  Nxa5 {[%clk 0:00:09]} 54. bxa5 {[%clk 0:00:04]}  Rxa5+ {[%clk 0:00:10]} 55. Kb4 {[%clk 0:00:03]}  Re5 {[%clk 0:00:10]} 56. Rxe5 {[%clk 0:00:03]}  Kxe5 {[%clk 0:00:10]} 57. Kc3 {[%clk 0:00:04]}  Kf4 {[%clk 0:00:11]} 58. Kd2 {[%clk 0:00:04]}  Kg3 {[%clk 0:00:10]} 59. Ke1 {[%clk 0:00:05]}  Kg2 {[%clk 0:00:11]} 60. Be2 {[%clk 0:00:04]}  h5 {[%clk 0:00:11]} 61. Bf1+ {[%clk 0:00:05]}  Kxf3 {[%clk 0:00:11]} 62. Kd2 {[%clk 0:00:05]}  g4 {[%clk 0:00:11]} 63. Be2+ {[%clk 0:00:04]}  Kf2 {[%clk 0:00:11]} 64. Kd3 {[%clk 0:00:05]}  g3 {[%clk 0:00:11]} 65. Bxh5 {[%clk 0:00:05]}  g2 {[%clk 0:00:11]} 0-1


[Site "https://www.chess.com"]

[Event "Titled Tuesday Blitz October 11 Early 2022"]
[White "Toshali, V"]
[Black "Baskakov, Egor"]
[WhiteFideId "5072611"]
[BlackFideId "24197866"]
[WhiteElo "1973"]
[BlackElo "2211"]
[Result "1-0"]
[Round "01"]
[TimeControl "180+1"]
[Date "2022.10.12"]
[WhiteClock "0:01:15"]
[BlackClock "0:00:53"]

1. d4 {[%clk 0:03:00]}  Nf6 {[%clk 0:02:58]} 2. Nf3 {[%clk 0:03:00]}  e6 {[%clk 0:02:59]} 3. Bf4 {[%clk 0:02:59]}  d5 {[%clk 0:03:00]} 4. e3 {[%clk 0:02:57]}  Ne4 {[%clk 0:03:00]} 5. Nbd2 {[%clk 0:02:55]}  Bd6 {[%clk 0:03:01]} 6. Ne5 {[%clk 0:02:51]}  O-O {[%clk 0:03:00]} 7. Bd3 {[%clk 0:02:50]}  f5 {[%clk 0:03:00]} 8. O-O {[%clk 0:02:23]}  Nd7 {[%clk 0:02:59]} 9. c4 {[%clk 0:02:20]}  Nxd2 {[%clk 0:02:48]} 10. Qxd2 {[%clk 0:02:20]}  Nxe5 {[%clk 0:02:47]} 11. dxe5 {[%clk 0:02:19]}  Be7 {[%clk 0:02:47]} 12. cxd5 {[%clk 0:02:15]}  Qxd5 {[%clk 0:02:48]} 13. Qe2 {[%clk 0:02:15]}  Qd8 {[%clk 0:02:25]} 14. e4 {[%clk 0:02:11]}  g5 {[%clk 0:02:22]} 15. exf5 {[%clk 0:02:04]}  gxf4 {[%clk 0:02:16]} 16. f6 {[%clk 0:02:04]}  Bxf6 {[%clk 0:02:10]} 17. exf6 {[%clk 0:02:02]}  Qxf6 {[%clk 0:02:10]} 18. Qh5 {[%clk 0:01:53]}  Qg7 {[%clk 0:02:08]} 19. Rae1 {[%clk 0:01:53]}  Bd7 {[%clk 0:02:07]} 20. Re5 {[%clk 0:01:52]}  Kh8 {[%clk 0:02:03]} 21. Rg5 {[%clk 0:01:51]}  Qe7 {[%clk 0:02:03]} 22. Rg4 {[%clk 0:01:39]}  e5 {[%clk 0:01:53]} 23. Rh4 {[%clk 0:01:38]}  Rf7 {[%clk 0:01:54]} 24. Re1 {[%clk 0:01:36]}  Rg7 {[%clk 0:01:11]} 25. Rxe5 {[%clk 0:01:30]}  Qd6 {[%clk 0:01:09]} 26. Qxh7+ {[%clk 0:01:16]}  Rxh7 {[%clk 0:01:08]} 27. Rxh7+ {[%clk 0:01:16]}  Kg8 {[%clk 0:01:08]} 28. Rg5+ {[%clk 0:01:15]}  Kf8 {[%clk 0:01:09]} 29. Rh8+ {[%clk 0:01:15]}  Ke7 {[%clk 0:01:03]} 30. Rg7+ {[%clk 0:01:14]}  Kf6 {[%clk 0:00:53]} 31. Rg6+ {[%clk 0:01:14]}  Ke5 {[%clk 0:00:53]} 32. Rxd6 {[%clk 0:01:14]}  Rxh8 {[%clk 0:00:53]} 33. Rxd7 {[%clk 0:01:15]} 1-0


[Site "https://www.chess.com"]